[Event "*** SCC Grand Prix: Titled Tuesday Blitz"]
[Site "Chess.com"]
[Date "2020.06.23"]
[Round "9"]
[White "Mourinho_Jose"]
[Black "DishonorOnYourCow"]
[Result "1-0"]
[WhiteElo "2478"]
[BlackElo "2334"]
[TimeControl "180+1"]
[EndTime "11:46:36 PDT"]
[Termination "Mourinho_Jose won on time"]

1. Nf3 {[%clk 0:03:00.9]} 1... d5 {[%clk 0:02:59.4]} 2. g3 {[%clk 0:03:01]} 2...
Nf6 {[%clk 0:02:59.9]} 3. Bg2 {[%clk 0:03:01.1]} 3... g6 {[%clk 0:03:00.5]} 4.
O-O {[%clk 0:03:01.2]} 4... Bg7 {[%clk 0:03:01.1]} 5. d4 {[%clk 0:03:01.4]} 5...
O-O {[%clk 0:03:01.6]} 6. Nbd2 {[%clk 0:03:02]} 6... c5 {[%clk 0:02:50.4]} 7.
dxc5 {[%clk 0:03:01.3]} 7... Nc6 {[%clk 0:02:48.9]} 8. Nb3 {[%clk 0:02:58.2]}
8... e5 {[%clk 0:02:47.9]} 9. Bg5 {[%clk 0:02:43.1]} 9... h6 {[%clk 0:02:35.6]}
10. Bxf6 {[%clk 0:02:41]} 10... Bxf6 {[%clk 0:02:36.5]} 11. c3 {[%clk
0:02:37.9]} 11... d4 {[%clk 0:02:29.8]} 12. cxd4 {[%clk 0:02:30]} 12... exd4
{[%clk 0:02:30.7]} 13. Rc1 {[%clk 0:02:20.7]} 13... Be6 {[%clk 0:02:13.4]} 14.
Nfd2 {[%clk 0:02:17.2]} 14... Re8 {[%clk 0:02:09.5]} 15. Ne4 {[%clk 0:02:13.5]}
15... Be7 {[%clk 0:02:02.3]} 16. Qd2 {[%clk 0:02:06.8]} 16... f5 {[%clk
0:01:50.4]} 17. Nd6 {[%clk 0:02:05.3]} 17... Bxd6 {[%clk 0:01:40.3]} 18. cxd6
{[%clk 0:02:06.2]} 18... Bxb3 {[%clk 0:01:39.8]} 19. axb3 {[%clk 0:01:57.3]}
19... Qxd6 {[%clk 0:01:34.3]} 20. Qxh6 {[%clk 0:01:42.8]} 20... Rxe2 {[%clk
0:01:32.5]} 21. h4 {[%clk 0:01:28]} 21... Re7 {[%clk 0:00:58.7]} 22. h5 {[%clk
0:01:20]} 22... Ne5 {[%clk 0:00:49.3]} 23. hxg6 {[%clk 0:01:12.2]} 23... Nxg6
{[%clk 0:00:43.5]} 24. Rfd1 {[%clk 0:00:42]} 24... Rh7 {[%clk 0:00:34.3]} 25.
Qg5 {[%clk 0:00:39.9]} 25... Rf8 {[%clk 0:00:19.1]} 26. Rc4 {[%clk 0:00:30.1]}
26... d3 {[%clk 0:00:18.7]} 27. Rc3 {[%clk 0:00:30.1]} 27... Rg7 {[%clk
0:00:14.4]} 28. Rcxd3 {[%clk 0:00:25.7]} 28... Qf6 {[%clk 0:00:14.5]} 29. Qh5
{[%clk 0:00:12.7]} 29... f4 {[%clk 0:00:14.1]} 30. Bd5+ {[%clk 0:00:11.9]} 30...
Rgf7 {[%clk 0:00:12.2]} 31. Bxf7+ {[%clk 0:00:11.9]} 31... Rxf7 {[%clk
0:00:12.4]} 32. Rd7 {[%clk 0:00:08.8]} 32... fxg3 {[%clk 0:00:11.6]} 33. Rxf7
{[%clk 0:00:07.3]} 33... gxf2+ {[%clk 0:00:09.3]} 34. Kf1 {[%clk 0:00:07.1]}
34... Qxf7 {[%clk 0:00:08.6]} 35. Qd5 {[%clk 0:00:04.8]} 35... Qxd5 {[%clk
0:00:03.3]} 36. Rxd5 {[%clk 0:00:05.7]} 36... Nf4 {[%clk 0:00:03.2]} 37. Rd7
{[%clk 0:00:05.7]} 37... b5 {[%clk 0:00:02.3]} 38. Rxa7 {[%clk 0:00:05.4]} 38...
Nd3 {[%clk 0:00:02.3]} 39. Rb7 {[%clk 0:00:05.3]} 39... b4 {[%clk 0:00:02]} 40.
Ke2 {[%clk 0:00:05.5]} 40... Nxb2 {[%clk 0:00:02.3]} 41. Kxf2 {[%clk 0:00:05.4]}
41... Kf8 {[%clk 0:00:01.3]} 42. Ke2 {[%clk 0:00:05.2]} 42... Ke8 {[%clk
0:00:01]} 43. Kd2 {[%clk 0:00:05.5]} 43... Kd8 {[%clk 0:00:01]} 44. Kc2 {[%clk
0:00:05.7]} 1-0

[Event "*** SCC Grand Prix: Titled Tuesday Blitz"]
[Site "Chess.com"]
[Date "2020.06.23"]
[Round "9"]
[White "alexrustemov"]
[Black "chipmunknau"]
[Result "1-0"]
[WhiteElo "2744"]
[BlackElo "2606"]
[TimeControl "180+1"]
[EndTime "11:46:37 PDT"]
[Termination "alexrustemov won on time"]

1. d4 {[%clk 0:03:00.9]} 1... Nf6 {[%clk 0:02:58.8]} 2. Nf3 {[%clk 0:02:59.6]}
2... e6 {[%clk 0:02:58.6]} 3. c4 {[%clk 0:02:57.3]} 3... c5 {[%clk 0:02:58.8]}
4. d5 {[%clk 0:02:57.1]} 4... exd5 {[%clk 0:02:59.7]} 5. cxd5 {[%clk 0:02:57.8]}
5... d6 {[%clk 0:03:00.6]} 6. Nc3 {[%clk 0:02:58.4]} 6... a6 {[%clk 0:03:01.4]}
7. e4 {[%clk 0:02:56.6]} 7... g6 {[%clk 0:02:59.8]} 8. h3 {[%clk 0:02:52.3]}
8... b5 {[%clk 0:02:56.8]} 9. Bd3 {[%clk 0:02:51.5]} 9... Bg7 {[%clk 0:02:56.1]}
10. O-O {[%clk 0:02:50.8]} 10... O-O {[%clk 0:02:56.4]} 11. a3 {[%clk
0:02:49.6]} 11... Nbd7 {[%clk 0:02:55.6]} 12. Bf4 {[%clk 0:02:47.3]} 12... Qe7
{[%clk 0:02:54.6]} 13. Re1 {[%clk 0:02:46.4]} 13... Nh5 {[%clk 0:02:54.6]} 14.
Bg5 {[%clk 0:02:42.4]} 14... Bf6 {[%clk 0:02:47]} 15. Be3 {[%clk 0:02:34.8]}
15... Ne5 {[%clk 0:02:42.8]} 16. Be2 {[%clk 0:02:34.1]} 16... Nxf3+ {[%clk
0:02:21]} 17. Bxf3 {[%clk 0:02:35]} 17... Ng7 {[%clk 0:02:21.1]} 18. Qd2 {[%clk
0:02:31.6]} 18... Rb8 {[%clk 0:02:17.9]} 19. b4 {[%clk 0:02:30.3]} 19... Qe5
{[%clk 0:01:59.6]} 20. Rac1 {[%clk 0:02:28.3]} 20... c4 {[%clk 0:01:55.7]} 21.
Ne2 {[%clk 0:02:16.7]} 21... Qb2 {[%clk 0:01:54]} 22. Qxb2 {[%clk 0:01:59.2]}
22... Bxb2 {[%clk 0:01:54.9]} 23. Rb1 {[%clk 0:01:57.8]} 23... Be5 {[%clk
0:01:44.3]} 24. Bd4 {[%clk 0:01:57]} 24... f5 {[%clk 0:01:29.3]} 25. Bxe5 {[%clk
0:01:51.4]} 25... dxe5 {[%clk 0:01:30.2]} 26. Nc3 {[%clk 0:01:50.3]} 26... Re8
{[%clk 0:01:24.9]} 27. a4 {[%clk 0:01:47.8]} 27... Bd7 {[%clk 0:01:24.5]} 28.
axb5 {[%clk 0:01:47.6]} 28... Bxb5 {[%clk 0:01:18.2]} 29. Ra1 {[%clk 0:01:45.7]}
29... h6 {[%clk 0:01:08.5]} 30. g4 {[%clk 0:01:40.9]} 30... f4 {[%clk
0:01:04.4]} 31. Bd1 {[%clk 0:01:10.8]} 31... Red8 {[%clk 0:01:02.1]} 32. Ba4
{[%clk 0:01:10.4]} 32... Ne8 {[%clk 0:00:59.8]} 33. Bxb5 {[%clk 0:01:09.9]}
33... axb5 {[%clk 0:01:00.7]} 34. Ra6 {[%clk 0:01:07.5]} 34... Nd6 {[%clk
0:00:50.2]} 35. Rea1 {[%clk 0:01:06.9]} 35... h5 {[%clk 0:00:44.2]} 36. gxh5
{[%clk 0:01:01.3]} 36... gxh5 {[%clk 0:00:45.1]} 37. Rc6 {[%clk 0:00:57.4]}
37... Kf7 {[%clk 0:00:36.1]} 38. Raa6 {[%clk 0:00:56.8]} 38... Ke7 {[%clk
0:00:36.3]} 39. Kg2 {[%clk 0:00:54.1]} 39... Rb7 {[%clk 0:00:35.4]} 40. Kf3
{[%clk 0:00:53.5]} 40... Rbd7 {[%clk 0:00:32.5]} 41. Rab6 {[%clk 0:00:51.5]}
41... Ra8 {[%clk 0:00:19.2]} 42. Ke2 {[%clk 0:00:51.4]} 42... f3+ {[%clk
0:00:14.8]} 43. Kd2 {[%clk 0:00:48.9]} 43... Ra3 {[%clk 0:00:14.4]} 44. Rxd6
{[%clk 0:00:45.9]} 44... Rxd6 {[%clk 0:00:12.5]} 45. Rxd6 {[%clk 0:00:45.9]}
45... Rb3 {[%clk 0:00:12.3]} 46. Re6+ {[%clk 0:00:25.3]} 46... Kd7 {[%clk
0:00:12.4]} 47. Nd1 {[%clk 0:00:18.7]} 47... Rxb4 {[%clk 0:00:08.5]} 48. Rxe5
{[%clk 0:00:18.9]} 48... Rb3 {[%clk 0:00:05.6]} 49. Re6 {[%clk 0:00:17.5]} 49...
Rd3+ {[%clk 0:00:04.2]} 50. Kc2 {[%clk 0:00:16.6]} 50... b4 {[%clk 0:00:03]} 51.
Rc6 {[%clk 0:00:15.3]} 1-0

[Event "*** SCC Grand Prix: Titled Tuesday Blitz"]
[Site "Chess.com"]
[Date "2020.06.23"]
[Round "9"]
[White "Angel_Hranitel_37"]
[Black "vovachesss"]
[Result "0-1"]
[WhiteElo "2419"]
[BlackElo "2583"]
[TimeControl "180+1"]
[EndTime "11:46:38 PDT"]
[Termination "vovachesss won by checkmate"]

1. d4 {[%clk 0:03:00.9]} 1... Nf6 {[%clk 0:02:57.9]} 2. Nf3 {[%clk 0:03:00.8]}
2... e6 {[%clk 0:02:57.9]} 3. g3 {[%clk 0:03:01.4]} 3... c5 {[%clk 0:02:57.7]}
4. Bg2 {[%clk 0:03:02.3]} 4... cxd4 {[%clk 0:02:57.1]} 5. Nxd4 {[%clk
0:03:03.2]} 5... Nc6 {[%clk 0:02:57.8]} 6. O-O {[%clk 0:03:03.3]} 6... d5 {[%clk
0:02:58.4]} 7. c4 {[%clk 0:03:00.9]} 7... Bc5 {[%clk 0:02:55]} 8. Be3 {[%clk
0:02:51.7]} 8... Nxd4 {[%clk 0:02:43.5]} 9. Bxd4 {[%clk 0:02:52.6]} 9... Qb6
{[%clk 0:02:38.3]} 10. Bxc5 {[%clk 0:02:21.8]} 10... Qxc5 {[%clk 0:02:38.4]} 11.
cxd5 {[%clk 0:02:22.7]} 11... Nxd5 {[%clk 0:02:31.1]} 12. Nd2 {[%clk 0:02:22.1]}
12... O-O {[%clk 0:02:30.3]} 13. Qb3 {[%clk 0:02:20.7]} 13... Nf6 {[%clk
0:02:25.5]} 14. Rac1 {[%clk 0:02:20.5]} 14... Qh5 {[%clk 0:02:24.8]} 15. Nc4
{[%clk 0:02:15.2]} 15... Rb8 {[%clk 0:02:00.4]} 16. Qf3 {[%clk 0:02:11.2]} 16...
Qg5 {[%clk 0:01:44.9]} 17. h4 {[%clk 0:02:09.3]} 17... Qb5 {[%clk 0:01:38.6]}
18. Qb3 {[%clk 0:01:55.8]} 18... Bd7 {[%clk 0:01:35.8]} 19. Rfd1 {[%clk
0:01:36.5]} 19... Qxb3 {[%clk 0:01:08.5]} 20. axb3 {[%clk 0:01:37.4]} 20... Bb5
{[%clk 0:01:09.3]} 21. Kf1 {[%clk 0:01:24.5]} 21... b6 {[%clk 0:00:59.6]} 22.
Nd6 {[%clk 0:01:21.4]} 22... Bd7 {[%clk 0:00:55]} 23. Rc7 {[%clk 0:01:20.1]}
23... a5 {[%clk 0:00:52.6]} 24. Bf3 {[%clk 0:00:49.2]} 24... e5 {[%clk
0:00:47.9]} 25. Nc4 {[%clk 0:00:24.6]} 25... Be6 {[%clk 0:00:48.2]} 26. Nxe5
{[%clk 0:00:22.2]} 26... Bxb3 {[%clk 0:00:48.1]} 27. Nc6 {[%clk 0:00:20.8]}
27... Bxd1 {[%clk 0:00:46.6]} 28. Nxb8 {[%clk 0:00:20.5]} 28... Rxb8 {[%clk
0:00:47.5]} 29. Rc3 {[%clk 0:00:15.6]} 29... a4 {[%clk 0:00:46.7]} 30. Bc6
{[%clk 0:00:13]} 30... Bb3 {[%clk 0:00:45.4]} 31. e4 {[%clk 0:00:13]} 31... Kf8
{[%clk 0:00:35]} 32. Ke2 {[%clk 0:00:11.6]} 32... b5 {[%clk 0:00:34]} 33. f4
{[%clk 0:00:10.5]} 33... b4 {[%clk 0:00:34.2]} 34. Rc1 {[%clk 0:00:10.1]} 34...
a3 {[%clk 0:00:33.9]} 35. bxa3 {[%clk 0:00:09.9]} 35... bxa3 {[%clk 0:00:34.8]}
36. Ra1 {[%clk 0:00:10.4]} 36... a2 {[%clk 0:00:34.7]} 37. Kd2 {[%clk 0:00:11]}
37... Rb6 {[%clk 0:00:32.1]} 38. Ba8 {[%clk 0:00:07.6]} 38... Be6 {[%clk
0:00:27.2]} 39. f5 {[%clk 0:00:07.4]} 39... Rb1 {[%clk 0:00:26.8]} 40. Rxa2
{[%clk 0:00:03.5]} 40... Bxa2 {[%clk 0:00:26.9]} 41. e5 {[%clk 0:00:04.4]} 41...
Ng4 {[%clk 0:00:26.7]} 42. Be4 {[%clk 0:00:04.7]} 42... Nxe5 {[%clk 0:00:26.5]}
43. Bxb1 {[%clk 0:00:04.2]} 43... Bxb1 {[%clk 0:00:27.4]} 44. f6 {[%clk
0:00:04.8]} 44... gxf6 {[%clk 0:00:27.3]} 45. Ke3 {[%clk 0:00:05.5]} 45... Kg7
{[%clk 0:00:27.7]} 46. Kf4 {[%clk 0:00:06.4]} 46... Kg6 {[%clk 0:00:28.1]} 47.
g4 {[%clk 0:00:05.7]} 47... Nxg4 {[%clk 0:00:26.6]} 48. Kxg4 {[%clk 0:00:06.6]}
48... h5+ {[%clk 0:00:26.8]} 49. Kf4 {[%clk 0:00:06.8]} 49... Bc2 {[%clk
0:00:26.9]} 50. Ke3 {[%clk 0:00:06.1]} 50... Kf5 {[%clk 0:00:27.8]} 51. Kf3
{[%clk 0:00:07]} 51... Bb1 {[%clk 0:00:27.5]} 52. Kg3 {[%clk 0:00:07.9]} 52...
Ke4 {[%clk 0:00:27.9]} 53. Kh3 {[%clk 0:00:08]} 53... Kf4 {[%clk 0:00:28.8]} 54.
Kg2 {[%clk 0:00:08.3]} 54... Kg4 {[%clk 0:00:29.7]} 55. Kf2 {[%clk 0:00:09.2]}
55... Kxh4 {[%clk 0:00:30.6]} 56. Kf3 {[%clk 0:00:10.1]} 56... Kh3 {[%clk
0:00:30.9]} 57. Kf4 {[%clk 0:00:10.1]} 57... h4 {[%clk 0:00:31.1]} 58. Kf3
{[%clk 0:00:11]} 58... Kh2 {[%clk 0:00:31.6]} 59. Kf2 {[%clk 0:00:11.7]} 59...
h3 {[%clk 0:00:32.2]} 60. Kf1 {[%clk 0:00:12.6]} 60... Bd3+ {[%clk 0:00:32.1]}
61. Kf2 {[%clk 0:00:13.5]} 61... Bc4 {[%clk 0:00:33]} 62. Kf3 {[%clk 0:00:13.4]}
62... Kg1 {[%clk 0:00:33.9]} 63. Kg3 {[%clk 0:00:14.2]} 63... h2 {[%clk
0:00:34.8]} 64. Kg4 {[%clk 0:00:14.9]} 64... h1=Q {[%clk 0:00:35.7]} 65. Kf5
{[%clk 0:00:15.8]} 65... Qf3# {[%clk 0:00:35.9]} 0-1

[Event "*** SCC Grand Prix: Titled Tuesday Blitz"]
[Site "Chess.com"]
[Date "2020.06.23"]
[Round "9"]
[White "GregShahade"]
[Black "Yuri202062"]
[Result "1-0"]
[WhiteElo "2568"]
[BlackElo "2410"]
[TimeControl "180+1"]
[EndTime "11:46:39 PDT"]
[Termination "GregShahade won on time"]

1. e4 {[%clk 0:03:00.9]} 1... c5 {[%clk 0:02:59.4]} 2. Nf3 {[%clk 0:03:00.7]}
2... e6 {[%clk 0:02:59.6]} 3. d4 {[%clk 0:03:01.2]} 3... cxd4 {[%clk 0:02:59.9]}
4. Nxd4 {[%clk 0:03:02.1]} 4... a6 {[%clk 0:03:00.2]} 5. Nc3 {[%clk 0:03:02.5]}
5... d6 {[%clk 0:02:59.4]} 6. Bd3 {[%clk 0:03:00.4]} 6... Nf6 {[%clk 0:02:59.3]}
7. O-O {[%clk 0:03:00.1]} 7... Nbd7 {[%clk 0:02:57.2]} 8. a4 {[%clk 0:02:50]}
8... b6 {[%clk 0:02:56.4]} 9. f4 {[%clk 0:02:44.7]} 9... Bb7 {[%clk 0:02:56.3]}
10. Qe2 {[%clk 0:02:40.9]} 10... Rc8 {[%clk 0:02:56]} 11. Kh1 {[%clk 0:02:40.1]}
11... Be7 {[%clk 0:02:49.5]} 12. Bd2 {[%clk 0:02:40.1]} 12... O-O {[%clk
0:02:48.8]} 13. Rae1 {[%clk 0:02:40.2]} 13... Nc5 {[%clk 0:02:46.7]} 14. Nf3
{[%clk 0:02:33.3]} 14... Nfd7 {[%clk 0:02:31.9]} 15. b4 {[%clk 0:02:14]} 15...
Nxd3 {[%clk 0:02:30.6]} 16. cxd3 {[%clk 0:02:14]} 16... Re8 {[%clk 0:02:19.6]}
17. Qf2 {[%clk 0:02:09.8]} 17... Bf8 {[%clk 0:02:17.2]} 18. Qg3 {[%clk
0:02:07.4]} 18... Nf6 {[%clk 0:02:09.3]} 19. Rc1 {[%clk 0:02:04.4]} 19... Qd7
{[%clk 0:02:03.3]} 20. Nd4 {[%clk 0:01:59.2]} 20... g6 {[%clk 0:01:47.5]} 21. f5
{[%clk 0:01:57.1]} 21... Bg7 {[%clk 0:01:46.5]} 22. fxe6 {[%clk 0:01:06]} 22...
fxe6 {[%clk 0:01:46]} 23. Nce2 {[%clk 0:01:01.7]} 23... Qxa4 {[%clk 0:01:36]}
24. Qxd6 {[%clk 0:00:55.1]} 24... Qd7 {[%clk 0:01:05.2]} 25. Qxb6 {[%clk
0:00:48.1]} 25... e5 {[%clk 0:00:45.2]} 26. Rxc8 {[%clk 0:00:43.1]} 26... Bxc8
{[%clk 0:00:41.7]} 27. Bg5 {[%clk 0:00:21.3]} 27... Nxe4 {[%clk 0:00:28.5]} 28.
dxe4 {[%clk 0:00:22.2]} 28... exd4 {[%clk 0:00:28.6]} 29. Ng3 {[%clk 0:00:22.6]}
29... d3 {[%clk 0:00:26.2]} 30. Rd1 {[%clk 0:00:21.1]} 30... h6 {[%clk 0:00:17]}
31. Be3 {[%clk 0:00:17.6]} 31... Kh7 {[%clk 0:00:16.4]} 32. h3 {[%clk
0:00:16.5]} 32... Re6 {[%clk 0:00:13.5]} 33. Qa5 {[%clk 0:00:11.4]} 33... Rc6
{[%clk 0:00:10.3]} 34. Qa3 {[%clk 0:00:10.7]} 34... Rc3 {[%clk 0:00:09.4]} 35.
Qa2 {[%clk 0:00:08.9]} 35... Bb7 {[%clk 0:00:09.1]} 36. Qf2 {[%clk 0:00:08.7]}
36... Qe6 {[%clk 0:00:06.4]} 37. Qf3 {[%clk 0:00:08.3]} 37... d2 {[%clk
0:00:05]} 38. Ne2 {[%clk 0:00:08.4]} 38... Rd3 {[%clk 0:00:04.3]} 39. Nf4 {[%clk
0:00:07.4]} 39... Qxe4 {[%clk 0:00:03.6]} 40. Qxe4 {[%clk 0:00:07.8]} 40... Bxe4
{[%clk 0:00:03.9]} 41. Nxd3 {[%clk 0:00:08.5]} 41... Bxd3 {[%clk 0:00:03.1]} 42.
Rxd2 {[%clk 0:00:09.1]} 42... Bb5 {[%clk 0:00:03.2]} 43. Rd6 {[%clk 0:00:09.6]}
43... Bc3 {[%clk 0:00:02]} 44. Bc5 {[%clk 0:00:09.3]} 44... Kg7 {[%clk
0:00:01.2]} 45. Rb6 {[%clk 0:00:09.2]} 45... Kf7 {[%clk 0:00:01.2]} 46. Rd6
{[%clk 0:00:09.3]} 1-0

[Event "*** SCC Grand Prix: Titled Tuesday Blitz"]
[Site "Chess.com"]
[Date "2020.06.23"]
[Round "9"]
[White "RianKapriaga"]
[Black "TheLawAdv"]
[Result "0-1"]
[WhiteElo "2160"]
[BlackElo "2026"]
[TimeControl "180+1"]
[EndTime "11:46:39 PDT"]
[Termination "TheLawAdv won on time"]

1. d4 {[%clk 0:00:55.7]} 1... d5 {[%clk 0:02:52.1]} 2. Nf3 {[%clk 0:00:55.4]}
2... e6 {[%clk 0:02:46.6]} 3. Bf4 {[%clk 0:00:55.6]} 3... Bd6 {[%clk 0:02:32.7]}
4. e3 {[%clk 0:00:55.6]} 4... Nf6 {[%clk 0:02:29.8]} 5. Nbd2 {[%clk 0:00:54.4]}
5... O-O {[%clk 0:02:26.5]} 6. Bd3 {[%clk 0:00:53.6]} 6... Bxf4 {[%clk
0:02:23.7]} 7. exf4 {[%clk 0:00:51.7]} 7... c5 {[%clk 0:02:24.4]} 8. c3 {[%clk
0:00:50.5]} 8... Nc6 {[%clk 0:02:20.6]} 9. O-O {[%clk 0:00:49.1]} 9... cxd4
{[%clk 0:02:18.4]} 10. Nxd4 {[%clk 0:00:46]} 10... Qb6 {[%clk 0:02:15.3]} 11.
N2b3 {[%clk 0:00:43.4]} 11... Nxd4 {[%clk 0:02:12.9]} 12. cxd4 {[%clk
0:00:41.9]} 12... a5 {[%clk 0:02:10.6]} 13. Rb1 {[%clk 0:00:37.9]} 13... a4
{[%clk 0:02:00.4]} 14. Nc5 {[%clk 0:00:36.6]} 14... Qc6 {[%clk 0:01:57.6]} 15.
b4 {[%clk 0:00:25.4]} 15... b6 {[%clk 0:01:45.3]} 16. b5 {[%clk 0:00:25.2]}
16... Qc7 {[%clk 0:01:40.4]} 17. Nxa4 {[%clk 0:00:24.8]} 17... Bd7 {[%clk
0:01:37.6]} 18. g3 {[%clk 0:00:21.5]} 18... Qa7 {[%clk 0:01:29.5]} 19. Nc3
{[%clk 0:00:19.4]} 19... Rfc8 {[%clk 0:01:25.7]} 20. Qb3 {[%clk 0:00:19.5]}
20... Qa3 {[%clk 0:01:22.7]} 21. Ne2 {[%clk 0:00:16.1]} 21... Qxa2 {[%clk
0:01:16.5]} 22. Qxa2 {[%clk 0:00:15.9]} 22... Rxa2 {[%clk 0:01:15.6]} 23. Rfc1
{[%clk 0:00:16.8]} 23... Rxc1+ {[%clk 0:01:04.4]} 24. Rxc1 {[%clk 0:00:17.7]}
24... Kf8 {[%clk 0:01:00]} 25. Rc7 {[%clk 0:00:15.9]} 25... Ke7 {[%clk
0:00:56.3]} 26. Kg2 {[%clk 0:00:14.8]} 26... Kd6 {[%clk 0:00:53.7]} 27. Rc3
{[%clk 0:00:12.8]} 27... Rb2 {[%clk 0:00:47.4]} 28. h3 {[%clk 0:00:12]} 28...
Bxb5 {[%clk 0:00:36.9]} 29. Bxb5 {[%clk 0:00:11.9]} 29... Rxb5 {[%clk
0:00:36.6]} 30. Nc1 {[%clk 0:00:11.6]} 30... Ne4 {[%clk 0:00:33.4]} 31. Rc2
{[%clk 0:00:11.2]} 31... Rb4 {[%clk 0:00:30.7]} 32. Ne2 {[%clk 0:00:10.8]} 32...
Rc4 {[%clk 0:00:28.6]} 33. Rb2 {[%clk 0:00:09.2]} 33... Kc6 {[%clk 0:00:26.9]}
34. f3 {[%clk 0:00:09.2]} 34... Nd6 {[%clk 0:00:23.3]} 35. Kf2 {[%clk
0:00:05.4]} 35... b5 {[%clk 0:00:21.1]} 36. Rb1 {[%clk 0:00:04.3]} 36... b4
{[%clk 0:00:19.5]} 37. Ke3 {[%clk 0:00:02.5]} 37... Nb5 {[%clk 0:00:17.3]} 38.
Kd2 {[%clk 0:00:02.6]} 38... Nxd4 {[%clk 0:00:14.4]} 39. Nxd4+ {[%clk
0:00:03.5]} 39... Rxd4+ {[%clk 0:00:14.7]} 40. Ke3 {[%clk 0:00:04.1]} 40... Rc4
{[%clk 0:00:15.1]} 41. Kd3 {[%clk 0:00:04.1]} 41... Kc5 {[%clk 0:00:15.2]} 42.
Ke2 {[%clk 0:00:05]} 42... d4 {[%clk 0:00:15]} 43. Kd3 {[%clk 0:00:04.3]} 43...
Rc3+ {[%clk 0:00:15.1]} 44. Ke2 {[%clk 0:00:04.6]} 44... Kc4 {[%clk 0:00:15.7]}
45. g4 {[%clk 0:00:02.7]} 45... b3 {[%clk 0:00:16]} 46. Kd2 {[%clk 0:00:02.3]}
46... Rc2+ {[%clk 0:00:16]} 47. Kd1 {[%clk 0:00:02.4]} 47... d3 {[%clk
0:00:16.3]} 0-1

[Event "*** SCC Grand Prix: Titled Tuesday Blitz"]
[Site "Chess.com"]
[Date "2020.06.23"]
[Round "9"]
[White "czasnaszachy"]
[Black "dodorox"]
[Result "1-0"]
[WhiteElo "2247"]
[BlackElo "2047"]
[TimeControl "180+1"]
[EndTime "11:46:41 PDT"]
[Termination "czasnaszachy won on time"]

1. d4 {[%clk 0:03:00.9]} 1... Nf6 {[%clk 0:02:59.1]} 2. c4 {[%clk 0:03:00.6]}
2... e6 {[%clk 0:02:59.3]} 3. Nc3 {[%clk 0:03:00.4]} 3... d5 {[%clk 0:02:59.4]}
4. Nf3 {[%clk 0:02:59.2]} 4... Bb4 {[%clk 0:02:59.1]} 5. Bg5 {[%clk 0:02:57.2]}
5... h6 {[%clk 0:02:56.5]} 6. Bxf6 {[%clk 0:02:56.2]} 6... Qxf6 {[%clk
0:02:54.4]} 7. e3 {[%clk 0:02:56.3]} 7... O-O {[%clk 0:02:49.7]} 8. Be2 {[%clk
0:02:55.7]} 8... dxc4 {[%clk 0:02:38.4]} 9. Bxc4 {[%clk 0:02:55.2]} 9... Nd7
{[%clk 0:02:26.5]} 10. O-O {[%clk 0:02:54.6]} 10... Qe7 {[%clk 0:02:07.5]} 11.
a3 {[%clk 0:02:53.9]} 11... Bd6 {[%clk 0:02:03.5]} 12. Ba2 {[%clk 0:02:44.9]}
12... c6 {[%clk 0:02:00.6]} 13. Rc1 {[%clk 0:02:40.3]} 13... e5 {[%clk
0:01:59.5]} 14. dxe5 {[%clk 0:02:36.1]} 14... Nxe5 {[%clk 0:01:59.7]} 15. Nxe5
{[%clk 0:02:29.9]} 15... Qxe5 {[%clk 0:01:56.3]} 16. g3 {[%clk 0:02:20.1]} 16...
Bh3 {[%clk 0:01:54.5]} 17. Re1 {[%clk 0:02:18.3]} 17... Rad8 {[%clk 0:01:44]}
18. Qf3 {[%clk 0:02:16.6]} 18... h5 {[%clk 0:01:11.3]} 19. Red1 {[%clk
0:02:13.9]} 19... Bg4 {[%clk 0:01:11.3]} 20. Qg2 {[%clk 0:02:08.2]} 20... Bxd1
{[%clk 0:01:10.5]} 21. Rxd1 {[%clk 0:02:08.1]} 21... Bxa3 {[%clk 0:00:58.6]} 22.
bxa3 {[%clk 0:01:46.6]} 22... Qxc3 {[%clk 0:00:57.3]} 23. Rb1 {[%clk 0:01:40.1]}
23... Qc2 {[%clk 0:00:48.9]} 24. Ra1 {[%clk 0:01:16.2]} 24... Qb2 {[%clk
0:00:47.2]} 25. Qf1 {[%clk 0:01:14.5]} 25... Rd2 {[%clk 0:00:38.7]} 26. Bc4
{[%clk 0:00:59.4]} 26... Rxf2 {[%clk 0:00:32.8]} 27. Qxf2 {[%clk 0:00:56.9]}
27... Qxa1+ {[%clk 0:00:32.8]} 28. Kg2 {[%clk 0:00:57.8]} 28... Qf6 {[%clk
0:00:29.4]} 29. Qe2 {[%clk 0:00:54.5]} 29... Qe5 {[%clk 0:00:27.8]} 30. Bd3
{[%clk 0:00:52]} 30... b5 {[%clk 0:00:24]} 31. Bb1 {[%clk 0:00:50.1]} 31... a6
{[%clk 0:00:22.2]} 32. Qc2 {[%clk 0:00:48.5]} 32... g6 {[%clk 0:00:22.1]} 33.
Qxc6 {[%clk 0:00:47.1]} 33... Qxe3 {[%clk 0:00:20.3]} 34. Bxg6 {[%clk
0:00:42.3]} 34... Qd2+ {[%clk 0:00:15.4]} 35. Kh3 {[%clk 0:00:38.7]} 35... Qh6
{[%clk 0:00:10.2]} 36. Bxf7+ {[%clk 0:00:35.8]} 36... Kg7 {[%clk 0:00:10.6]} 37.
Be6 {[%clk 0:00:25.8]} 37... Qf6 {[%clk 0:00:05.4]} 38. Qd7+ {[%clk 0:00:22.7]}
38... Kh6 {[%clk 0:00:04.6]} 39. Qd2+ {[%clk 0:00:20.1]} 39... Kg7 {[%clk
0:00:04.8]} 40. Qd7+ {[%clk 0:00:18.3]} 40... Kh8 {[%clk 0:00:05]} 41. Qd5
{[%clk 0:00:16.2]} 41... Re8 {[%clk 0:00:03.5]} 42. Qxh5+ {[%clk 0:00:15.8]}
42... Kg7 {[%clk 0:00:02.9]} 43. Qxe8 {[%clk 0:00:15.9]} 43... Qh6+ {[%clk
0:00:01.8]} 44. Kg2 {[%clk 0:00:14.8]} 44... Qd2+ {[%clk 0:00:02.4]} 45. Kf3
{[%clk 0:00:12.9]} 45... Qd3+ {[%clk 0:00:02.7]} 46. Kf4 {[%clk 0:00:12.8]}
46... Qd4+ {[%clk 0:00:03]} 47. Kg5 {[%clk 0:00:12.5]} 47... Qf6+ {[%clk
0:00:02.7]} 48. Kg4 {[%clk 0:00:11.4]} 48... Qd4+ {[%clk 0:00:02.5]} 49. Kh3
{[%clk 0:00:10.7]} 1-0